Cogmind - Beta 13 @@@ ROGUE MODE // 2024.07.22 @ 22:42:44 Player: maykstuff Result: Destroyed by Y-45 Defender with Beam Rifle Performance ------------- Evolutions (1) 500 Regions Visited (3) 600 Robots Destroyed (88) 440 Value Destroyed (1893) 1893 Prototype IDs (9) 180 Alien Tech Used (0) 0 Bonus (484) 484 TOTAL SCORE: 4097 Bonus ------- High Alert Combat Kills 451 Follower Combat Kills 33 Cogmind --------- Core Integrity 0/400 Matter 37/300 Energy 265/280 System Corruption 1% Temperature Cool (60) Movement Rolling (110) Ox2 Location -9/Materials Parts ------- > --- POWER (1) -------- Cooled Ion Engine > --- PROPULSION (2) --- Wheel > --- UTILITY (4) ------ Medium Storage Unit Improved Signal Interpreter Targeting Computer > --- WEAPON (2) ------- Particle Gun Heavy Battle Rifle > --- INVENTORY (10) --- Light Ion Engine Structural Scanner Transport Network Coupler Recalibrator Plasma Cutter Peak State ------------ > --- POWER ------------ Ion Engine > --- PROPULSION ------- Wheel Wheel > --- UTILITY ---------- Medium Storage Unit Experimental Sensor Array Improved Signal Interpreter Targeting Computer > --- WEAPON ----------- Particle Cannon Heavy Battle Rifle > --- INVENTORY -------- Light Ion Engine Light Deuterium Engine Light Treads Structural Scanner Transport Network Coupler Beam Cannon Grenade Launcher Mini Grenade Launcher Mining Laser [Rating: 24] Favorites ----------- Power Ion Engine Engine Ion Engine Propulsion Wheel Treads Light Treads Wheel Wheel Utility Medium Storage Unit Device Experimental Sensor Array Storage Medium Storage Unit Processor Signal Interpreter Weapon Grenade Launcher Energy Gun Medium Laser Energy Cannon Beam Cannon Ballistic Gun Light Assault Rifle Launcher Grenade Launcher Build | -11 -10 -10 -9 ------- Run | Yrd Mat Min Mat Slots Evolved 2 | . . . 2 Power . | . . . . Propulsion . | . . . . Utility 2 | . . . 2 Weapon . | . . . . Parts Attached 53 | 6 9 4 34 Power 7 | 1 2 . 4 Engine 7 | 1 2 . 4 Core . | . . . . Reactor . | . . . . Propulsion 14 | 2 1 3 8 Treads 2 | . . . 2 Leg . | . . . . Wheel 12 | 2 1 3 6 Hover . | . . . . Flight . | . . . . Utility 7 | 1 2 . 4 Device 2 | . . . 2 Storage 2 | 1 1 . . Processor 3 | . 1 . 2 Hackware . | . . . . Protection . | . . . . Artifact . | . . . . Weapon 25 | 2 4 1 18 Energy Gun 2 | . 1 . 1 Energy Cannon 6 | . 1 . 5 Ballistic Gun 7 | 2 1 . 4 Ballistic Cannon . | . . . . Launcher 10 | . 1 1 8 Special Weapon . | . . . . Impact Weapon . | . . . . Slashing Weapon . | . . . . Piercing Weapon . | . . . . Special Melee Weapon . | . . . . Unidentified Prototypes 2 | . . . 2 Parts Lost 22 | . 5 . 17 Power 3 | . 1 . 2 Propulsion 9 | . 2 . 7 Utility 2 | . . . 2 Weapon 8 | . 2 . 6 Highest Loss Streak 5 | . 2 . 5 To Critical Strikes 1 | . 1 . . Average Slot Usage (%) 94 | . 90 97 95 Engine 12 | . 13 14 10 Treads 1 | . . . 3 Wheel 20 | . 22 25 16 Device 4 | . . . 9 Storage 12 | . 14 14 11 Processor 16 | . 11 14 22 Energy Gun 1 | . 5 . . Energy Cannon 7 | . 3 14 7 Ballistic Gun 6 | . 15 . 3 Launcher 8 | . 2 14 10 Naked Turns . | . . . . Heaviest Build 26 | 13 19 21 26 Greatest Support 40 | 26 26 26 40 Greatest Overweight (x) 7 | . 1 2 7 Average Overweight (x) . | . . . . Largest Inventory Capacity 10 | 8 10 10 10 Average Capacity 9 | 6 9 10 10 Most Carried 10 | 4 10 10 10 Average Carried 8 | 2 8 10 8 Final Capacity 10 | 8 10 10 10 Final Carried 10 | 4 10 10 5 Class Distribution -------------------- 97% | Mutant Dominant Class ---------------- Mutant | -10/Materials Mutant | -10/Mines Mutant | -9/Materials Resources | -11 -10 -10 -9 ----------- Run | Yrd Mat Min Mat Matter Collected 1199 | 232 253 102 612 Remotely . | . . . . Salvage Created 2014 | . 410 118 1486 Parts 140 | . 23 12 105 Haulers Intercepted 7 | . 2 . 5 Recyclers Shooed 2 | . . 1 1 Parts Field Recycled . | . . . . Retrieved Matter . | . . . . Parts Self-Destructed . | . . . . Prevented . | . . . . Kills | -11 -10 -10 -9 ------- Run | Yrd Mat Min Mat Combat Hostiles Destroyed 60 | . 14 5 41 Guns 15 | . 10 . 5 Cannons 7 | . . 1 6 AOE 38 | . 4 4 30 Classes Destroyed 14 | . 5 . 9 Worker 10 | . 1 2 7 Builder 3 | . . . 3 Tunneler 1 | . . . 1 Hauler 7 | . 2 . 5 Recycler 3 | . . . 3 Mechanic 1 | . . . 1 Operator 1 | . . . 1 Watcher 2 | . 1 . 1 Swarmer 21 | . 8 3 10 Grunt 29 | . 6 2 21 Brawler 1 | . . . 1 Duelist 1 | . . . 1 Protector 1 | . . . 1 Sentry 7 | . . . 7 Best Kill Streak 12 | . 4 4 12 Combat Bots Only 6 | . 3 3 6 Max Kills in Single Turn 5 | . 3 2 5 Gunslinging . | . . . . Exploded 4 | . 3 2 4 Melee . | . . . . Uniques/NPCs Destroyed . | . . . . Combat | -11 -10 -10 -9 -------- Run | Yrd Mat Min Mat Hostile Shots Fired 263 | . 74 11 178 Missed 75 | . 23 6 46 Damage Taken 2330 | . 487 86 1757 Core 531 | . 76 53 402 Absorbed by Shields . | . . . . Core Remaining (%) 74 | 100 . 48 . Volleys Fired 144 | . 56 9 79 Largest 2 | . 2 2 2 Hottest 128 | . 80 90 128 Shots Fired 251 | . 99 15 137 Gun 113 | . 85 . 28 Cannon 76 | . 9 9 58 Launcher 62 | . 5 6 51 Special . | . . . . Kinetic 78 | . 52 . 26 Thermal 111 | . 42 9 60 Explosive 62 | . 5 6 51 Electromagnetic . | . . . . Robot Hit Streak 9 | . 9 6 8 Robot Miss Streak 8 | . 8 5 4 Penetration Max . | . . . . Secondary Targets . | . . . . Shots Hit Robots 131 | . 54 7 70 Core Hits 120 | . 28 9 83 Critical Kills . | . . . . Critical Parts Destroyed . | . . . . Critical Strikes 4 | . 4 . . Burn 4 | . 4 . . Melee Attacks . | . . . . Impact . | . . . . Slashing . | . . . . Piercing . | . . . . Sneak Attacks . | . . . . Combat Hostiles . | . . . . Follow-up Attacks . | . . . . Damage Inflicted 5761 | . 904 379 4478 Guns 1010 | . 528 . 482 Cannons 833 | . 106 103 624 Explosions 3918 | . 270 276 3372 Melee . | . . . . Ramming . | . . . . Kinetic 740 | . 274 . 466 Thermal 1187 | . 360 103 724 Explosive 3834 | . 270 276 3288 Electromagnetic . | . . . . Impact . | . . . . Slashing . | . . . . Piercing . | . . . . Highest Corruption 1 | . . . 1 Average Corruption 1 | . . . 1 Corruption Purged . | . . . . Corruption Blocked . | . . . . Effects 7 | . . . 7 Message Errors 1 | . . . 1 Matter Fused 2 | . . . 2 Energy Discharges 1 | . . . 1 Data Loss (minor) 2 | . . . 2 Alerts 1 | . . . 1 Overload Shots . | . . . . Overflow Damage 111 | . 9 . 102 Projectiles 20 | . . . 20 Explosions 91 | . 9 . 82 Melee . | . . . . Knockbacks . | . . . . Impact . | . . . . Kinetic . | . . . . Secondary . | . . . . Self-Inflicted Damage 167 | . 19 27 121 Shots 7 | . 1 1 5 Rammed . | . . . . Targets Rammed . | . . . . Kicked . | . . . . Crushed . | . . . . Highest Temperature 275 | . 120 178 275 Average Temperature 64 | . 28 79 80 Received Heat Transfer 771 | . 108 18 645 Effects 1 | . . . 1 Energy Bleed 1 | . . . 1 Siege Activations . | . . . . Robots Corrupted . | . . . . Combat Hostiles . | . . . . Parts Fried . | . . . . Impact Corruptions . | . . . . Robots Melted . | . . . . Combat Hostiles . | . . . . Parts Melted 3 | . 1 . 2 Heat Transferred 2751 | . 1258 222 1271 Parts Sabotaged . | . . . . Parts Stolen . | . . . . Parts Stripped . | . . . . Power Chain Reactions . | . . . . Alert | -11 -10 -10 -9 ------- Run | Yrd Mat Min Mat Peak Influence 1320 | . 286 135 1320 Initial 58 | . . 58 32 Average 355 | . 147 84 632 Maximum Alert Level 4 | . 1 . 4 Low Security (%) 49 | 100 71 100 9 Level 1 19 | . 28 . 23 Level 2 8 | . . . 17 Level 3 17 | . . . 38 Level 4 4 | . . . 10 Level 5 . | . . . . High Security . | . . . . Max Security . | . . . . Squads Dispatched 10 | . 4 . 6 Investigation 4 | . 3 . 1 Extermination . | . . . . Reinforcement 4 | . 1 . 3 Assault 2 | . . . 2 Garrison . | . . . . Intercept . | . . . . Searches Triggered . | . . . . Construction Impeded . | . . . . Haulers Reinforced . | . . . . Active Scanning Responses . | . . . . Cargo Convoy Interrupts . | . . . . Stealth | -11 -10 -10 -9 --------- Run | Yrd Mat Min Mat Distress Signals 9 | . 3 . 6 Communications Jammed . | . . . . Distress Signals . | . . . . Times Spotted 94 | . 26 5 63 Peak Tracking Total 8 | . 6 3 8 Tactical Retreats 7 | . 1 . 6 Traps | -11 -10 -10 -9 ------- Run | Yrd Mat Min Mat Traps Triggered 3 | . 2 . 1 Indirectly . | . . . . Trap Hack Attempts . | . . . . Triggered . | . . . . Disarmed . | . . . . Reprogrammed . | . . . . Reused . | . . . . Traps Extracted . | . . . . Installed . | . . . . Triggered . | . . . . Machines | -11 -10 -10 -9 ---------- Run | Yrd Mat Min Mat Machines Disabled 11 | . . . 11 Max in Single Turn 1 | . . . 1 Machines Repaired . | . . . . Machines Dismantled . | . . . . Machines Sabotaged . | . . . . Overloaded Fab Kills . | . . . . Hacking | -11 -10 -10 -9 --------- Run | Yrd Mat Min Mat Machines Accessed 15 | . 7 . 8 Terminals 12 | . 7 . 5 Fabricators . | . . . . Repair Stations . | . . . . Recycling Units 1 | . . . 1 Scanalyzers 2 | . . . 2 Garrison Access . | . . . . Total Hacks 53 | . 28 . 25 Successful 37 | . 16 . 21 Failed 16 | . 12 . 4 Catastrophic . | . . . . Database Lockouts . | . . . . Manual 19 | . 11 . 8 Terminals 45 | . 28 . 17 Fabricators . | . . . . Repair Stations . | . . . . Recycling Units 2 | . . . 2 Scanalyzers 6 | . . . 6 Garrison Access . | . . . . Terminal Hacks 19 | . 12 . 7 Robot Analysis 2 | . 1 . 1 Prototype ID Bank 4 | . 2 . 2 Branch Access Points 2 | . 1 . 1 Emergency Access Points 2 | . 1 . 1 Terminal Index 1 | . 1 . . Alert Level 1 | . 1 . . Locate Traps 2 | . 2 . . Registered Components 1 | . 1 . . Zone Layout 4 | . 2 . 2 Fabricator Hacks . | . . . . Repair Station Hacks . | . . . . Recycling Unit Hacks 2 | . . . 2 Report Inventory 1 | . . . 1 Retrieve Matter 1 | . . . 1 Scanalyzer 6 | . . . 6 Insert Component 3 | . . . 3 Analyze 3 | . . . 3 Garrison Access Hacks . | . . . . Unauthorized Hacks 10 | . 4 . 6 Terminals 10 | . 4 . 6 Botnet 9 | . 4 . 5 Sabotage 1 | . . . 1 Fabricators . | . . . . Repair Stations . | . . . . Recycling Units . | . . . . Scanalyzers . | . . . . Garrison Access . | . . . . Data Cores Recovered . | . . . . Used . | . . . . Hacking Detections 11 | . 6 . 5 Full Trace Events 4 | . 2 . 2 Feedback Events . | . . . . Feedback Blocked . | . . . . Robot Schematics Acquired . | . . . . Robots Built . | . . . . Authchips . | . . . . Time . | . . . . Total Robot Build Rating . | . . . . Part Schematics Acquired 3 | . . . 3 Parts Built . | . . . . Authchips . | . . . . Time . | . . . . Total Part Build Rating . | . . . . Parts Repaired . | . . . . Time . | . . . . Parts Recycled . | . . . . Recycled Matter . | . . . . Retrieved Matter 210 | . . . 210 Retrieved Components . | . . . . Parts Scanalyzed 3 | . . . 3 Part Schematics Acquired 3 | . . . 3 Parts Damaged . | . . . . Bothacking | -11 -10 -10 -9 ------------ Run | Yrd Mat Min Mat Used RIF Installer . | . . . . Robots Hacked . | . . . . Non-combat . | . . . . Combat . | . . . . Robot Hacks Applied . | . . . . Relay Couplers Released . | . . . . Fabnet Peak Effective % . | . . . . Robots Rewired . | . . . . Allies Hacked . | . . . . Hacks Repelled . | . . . . Allies | -11 -10 -10 -9 -------- Run | Yrd Mat Min Mat Total Allies 3 | . . 3 . Largest Group 3 | . . 3 3 Highest-Rated Group 40 | . . 40 40 Highest-Rated Ally 16 | . . 16 16 Total Orders . | . . . . Ally Attacks 21 | . . . 21 Total Damage 233 | . . . 233 Kills 1 | . . . 1 Allies Corrupted . | . . . . Allies Melted . | . . . . Intel | -11 -10 -10 -9 ------- Run | Yrd Mat Min Mat Robot Analysis Total 2 | . 1 . 1 Derelict Logs Recovered 2 | . . 2 . Drone Launches . | . . . . Drone Recoveries . | . . . . Exploration | -11 -10 -10 -9 ------------- Run | Yrd Mat Min Mat Turns Passed 2837 | 48 880 601 1308 Spaces Moved 2358 | 40 750 592 976 Core 11 | 4 . . 7 Treads 85 | . . . 85 Legs . | . . . . Wheels 2262 | 36 750 592 884 Hover . | . . . . Flight . | . . . . Fastest Speed 50 | 50 90 90 90 Average Speed 97 | 86 91 92 104 Slowest Speed 400 | 100 95 110 400 Overloaded Moves . | . . . . Propulsion Burnouts . | . . . . Robots Hopped . | . . . . Cave-ins Triggered . | . . . . Exploration Rate (%) 70 | 4 94 98 84 Regions Visited 3 Branch Regions 1 Pre-discovered Areas . | . . . . Known Exits Taken 2 | . 1 1 . Unknown Exits Taken 1 | 1 . . . Scrap Searched 1 | . . 1 . Spaces Dug . | . . . . Terrain Destroyed 366 | . 21 44 301 Melee . | . . . . Projectile 3 | . . . 3 AOE 363 | . 21 44 298 Terrain Rammed . | . . . . Walls Destroyed . | . . . . Machines Disabled . | . . . . Actions | -11 -10 -10 -9 --------- Run | Yrd Mat Min Mat Total 2650 | 51 845 630 1124 Wait 49 | . 16 17 16 Move 2355 | 39 749 591 976 Hop . | . . . . Pick Up 33 | 6 12 3 12 Fast Attach 10 | 4 1 1 4 Attach 21 | 2 4 . 15 Detach . | . . . . Swap 22 | . 4 3 15 Drop 14 | . 3 4 7 Fire 144 | . 56 9 79 Melee . | . . . . Ram . | . . . . Kick . | . . . . Crush . | . . . . Escape Stasis . | . . . . Rewire 2 | . . 2 . Trap . | . . . . Miscellaneous . | . . . . Route ------- -11/Scrapyard -10/Materials (discovered 4 exits: *Mat x3 / *Min) -10/Mines (discovered 2 exits: *Mat x2) -9/Materials (discovered 4 exits: *Mat x3 / *Min) History --------- Turn | Location | Event 18 | -11/Scrapyard | Discovered new exit (range 16) 49 | -11/Scrapyard | Entered Materials 107 | -10/Materials | Identified exit to Mines 161 | -10/Materials | Discovered new exit (range 6) 210 | -10/Materials | Identified exit to Materials 314 | -10/Materials | Build established: Mutant 354 | -10/Materials | Discovered exit to Materials (range 4) 783 | -10/Materials | Discovered exit to Materials (range 5) 929 | -10/Materials | Entered Mines 979 | -10/Mines | A weapon hastily lodged in a ceiling crevice suddenly fell to the ground 1083 | -10/Mines | Learned 2 Materials zone layouts 1149 | -10/Mines | Learned Materials garrison access intel 1230 | -10/Mines | Found a damaged Exp. Sensor Array with a note attached 1232 | -10/Mines | Found Prototype Device 1388 | -10/Mines | Core integrity fell below 50% 1416 | -10/Mines | Discovered exit to Materials (range 15) 1511 | -10/Mines | Discovered exit to Materials (range 8) 1521 | -10/Mines | Assisted by bots powering up and referring to "LRC-V3" 1530 | -10/Mines | Entered Materials 1530 | -9/Materials | Accompanied by 3 allies 1530 | -9/Materials | Evolved 2 slots: Utility x2 1531 | -9/Materials | Identified exit to Materials 1531 | -9/Materials | Identified Exp. Sensor Array 2073 | -9/Materials | Discovered new exit (range 8) 2144 | -9/Materials | Core integrity fell below 50% 2172 | -9/Materials | Lost 3 parts (2n1w) 2330 | -9/Materials | First assault squad dispatched 2488 | -9/Materials | Discovered exit to Materials (range 17) 2488 | -9/Materials | Identified exit to Mines 2754 | -9/Materials | Core integrity fell below 20% 2806 | -9/Materials | Discovered exit to Materials (range 16) 2838 | -9/Materials | Destroyed by Y-45 Defender with Beam Rifle Last Messages --------------- >>Insert(Transport Network Coupler) Scanning Transport Network Coupler... Ready to analyze. >>Scanalyze Scanning: Transport Network Coupler... Schematic downloaded. 02806_ EXIT=FOUND: MATERIALS 02807_ K-01 Serf destroyed. 02807_ Electrolysis Chamber disabled. 02809_ The unstable cave ceiling collapses. 02809_ Rocket Launcher destroyed. 02810_ Com. Wheel destroyed. 02810_ S-10 Pest destroyed. 02812_ Critical hit (Burn: +37). 02812_ Imp. Ion Engine destroyed. 02812_ S-10 Pest destroyed. 02812_ Destroyed Lgt. Ion Engine. 02812_ S-10 Pest destroyed. 02818_ Grenade Launcher destroyed. 02821_ Com. Wheel destroyed. Map ----- +----------------------------------------------------+ | ## #????# #?# + #?? | | ## #????# #?#[ # """ #?? | | # #????# #?# ###+######### # """ ??? | | ### #????# #?## ##???????????# #? """ ??? | | #????# #??# ##???????????# #? ??? | | ### #????# #??# ##???????????# #??##+####?? | | ## ###??# #??# ##???????????# #??????????? | | ## #??# #??# ##??????????? ??????????? | | ## #??# #??# ##???????????#+#??????????? | | #??# #??# ##????????????????????????? | | ## #??# #??# #?????????????????????????? | | ## #??# #??# #?????????????????????????? | | ### #??# #??# #?????????????????????????? | | #?# #### #??# #?????????????????????????? | | #?# #??# #?????????????????????????? | | ??# #??# #?????????????????????????? | | ??# #??# #?????????????????????????? | | ### #??# ##????????????????????????? | | #?## #????????????????????????? | | ! #?# #????????????????????????? | | ### #######??????????????????? | | * = #??????????????????? | | #??????????????????? | | = % [ """ #??????????????????? | | = #???## % "T" +??????????????????? | | #???# %*= @ #??????????????????? | | # #???# Y #??????????????????? | | #????# " ###????????????????? | | S #????# ""Y #??????????????? | | "" ######## < #??????????????? | | "" + #??????????????? | | ########+###+########+####??????????????? | | """ #?????# ??????????????????????????????? | | """ #?????# ??????????????????????????????? | | """ #????? """?????????????????????????????? | | #????## """?????????????????????????????? | | #######?????# """ ????????????????????????????? | | ????????????# ????????????????????????????? | | ????????????# "T" ???????????????????????????? | | ????????????# ???? ???????????????????????????? | | ????????????##????????????????????????????????? | | ??????????????????????????????????????????????? | | ??????????????????????????????????????????????? | | ??????????????????????????????????????????????? | | | | | | | | | | | | | +----------------------------------------------------+ Best States ------------- Heat Dissipation 28 Energy Generation 14 Energy Capacity 280 Matter Stores 300 Matter Capacity 300 Sight Range 16 Robot Scan Range 20 Terrain Scan Range 14 Terrain Scan Density 10 Evasion (%) 42 Targeting Accuracy 5 Recoil Reduction 2 Item Schematics ----------------- Wheel | -9/Materials | Scanalyzed Particle Gun | -9/Materials | Scanalyzed Transport Network Coupler | -9/Materials | Scanalyzed Robot Schematics ------------------ None Fabricated ------------ Nothing Alien Tech Used ----------------- None Achievements -------------- None Challenges ------------ None Game ------ Seed AntimissileRainbowMediator Manual? 0 Play Time 00:31:05 Cumulative 17.3 hours Start 2024.07.22 @ 22:11:27 End 2024.07.22 @ 22:42:44 Sessions 1 Manual Loads 0 Difficulty Rogue Special Mode None Game No. 35 Rogue 35 Adventurer 0 Explorer 0 Win Type - Total 0 Types 0/0/0/0/0/0/0/0/0 Lore% 14 Gallery% 18 Achievement% 17 Wizard Run 0 Options --------- Layout 1 ASCII 1 Keyboard 0 Movement Numpad Keybinds 0 Fullscreen 1 Font 24/Proggy Map View 50x35 Zoom Use 0% Tactical HUD 1 Map Filters NONE Filters NONE Steam 0 RUN: cad90e34-7178-4b92-940e-ffed3626674f